Cogmind - Beta 15 @@@ ROGUE MODE // 2025.08.06 @ 20:03:40 Player: Koba Result: Self-destructed Performance ------------- Evolutions (1) 500 Regions Visited (5) 1000 Robots Destroyed (57) 285 Value Destroyed (1308) 1308 Prototype IDs (6) 120 Alien Tech Used (0) 0 Bonus (0) 0 TOTAL SCORE: 3213 Bonus ------- None Cogmind --------- Core Integrity 289/400 Matter 300/300 Energy 275/275 System Corruption 0% Temperature Cool (0) Movement Treading (160) Location -9/Exiles Parts ------- > --- POWER (1) -------- Deuterium Engine > --- PROPULSION (3) --- Light Treads Light Treads Medium Treads > --- UTILITY (3) ------ High-capacity Storage Unit Hardened Medium Armor Plating > --- WEAPON (2) ------- Light Cannon Advanced Assault Cannon > --- INVENTORY (20) --- Deuterium Engine Light Nuclear Core Light Treads Light Treads Armored Wheel High-capacity Storage Unit High-capacity Matter Pod (200) Visual Processing Unit Seismic Detector Light Armor Plating Light Armor Plating Hardened Medium Armor Plating Hardened Medium Armor Plating Hardened Medium Armor Plating Improved EM Shotgun Heavy Assault Rifle Light Cannon Rocket Launcher Rocket Launcher Hammer Peak State ------------ > --- POWER ------------ Deuterium Engine > --- PROPULSION ------- Light Treads Light Treads Medium Treads > --- UTILITY ---------- High-capacity Storage Unit Hardened Medium Armor Plating > --- WEAPON ----------- Light Cannon Advanced Assault Cannon > --- INVENTORY -------- Light Ion Engine Deuterium Engine Light Treads Light Treads Armored Wheel High-capacity Storage Unit High-capacity Matter Pod Visual Processing Unit Seismic Detector Light Armor Plating Light Armor Plating Hardened Medium Armor Plating Hardened Medium Armor Plating Hardened Medium Armor Plating Improved EM Shotgun Heavy Assault Rifle Light Cannon Rocket Launcher Rocket Launcher Hammer [Rating: 21] Favorites ----------- Power Deuterium Engine Engine Deuterium Engine Propulsion Light Treads Treads Light Treads Utility Seismic Detector Device Seismic Detector Storage High-capacity Storage Unit Processor Improved Targeting Computer Protection Hardened Medium Armor Plating Weapon Light Cannon Energy Gun Small Laser Ballistic Cannon Light Cannon Launcher Rocket Launcher Impact Weapon Hammer Build | -11 -10 -10 -9 -9 -9 ------- Run | Yrd Mat Min Mat Min Exi Slots Evolved 2 | . . . 2 . . Power . | . . . . . . Propulsion 1 | . . . 1 . . Utility 1 | . . . 1 . . Weapon . | . . . . . . Parts Attached 29 | 7 4 1 15 2 . Power 3 | 1 . . 2 . . Engine 3 | 1 . . 2 . . Core . | . . . . . . Reactor . | . . . . . . Propulsion 10 | 2 . . 7 1 . Treads 10 | 2 . . 7 1 . Leg . | . . . . . . Wheel . | . . . . . . Hover . | . . . . . . Flight . | . . . . . . Utility 6 | 2 2 . 2 . . Device 1 | 1 . . . . . Storage 3 | 1 2 . . . . Processor 1 | . . . 1 . . Hackware . | . . . . . . Protection 1 | . . . 1 . . Artifact . | . . . . . . Weapon 10 | 2 2 1 4 1 . Energy Gun 2 | 2 . . . . . Energy Cannon . | . . . . . . Ballistic Gun . | . . . . . . Ballistic Cannon 4 | . 2 . 1 1 . Launcher 3 | . . 1 2 . . Special Weapon . | . . . . . . Impact Weapon 1 | . . . 1 . . Slashing Weapon . | . . . . . . Piercing Weapon . | . . . . . . Special Melee Weapon . | . . . . . . Unidentified Prototypes . | . . . . . . Parts Lost 1 | . . . . 1 . Power . | . . . . . . Propulsion . | . . . . . . Utility 1 | . . . . 1 . Weapon . | . . . . . . Highest Loss Streak 1 | . . . . 1 . To Critical Strikes . | . . . . . . Average Backups 17 | 4 13 18 19 20 20 Power 1 | . 1 2 2 2 2 Propulsion 3 | 3 3 4 2 3 3 Utility 6 | . 4 6 8 9 9 Weapon 5 | . 3 6 6 6 6 Tool/Special . | . . . . . . Unused Backups 26 | . 2 . 9 1 14 Power 4 | . . . 1 1 2 Propulsion 5 | . 1 . 3 . 1 Utility 11 | . 1 . 1 . 9 Weapon 6 | . . . 4 . 2 Tool/Special . | . . . . . . Average Slot Usage (%) 98 | . 100 100 99 95 88 Engine 12 | . 14 14 11 11 11 Treads 31 | . 28 28 33 33 33 Device 11 | . 14 14 11 7 . Storage 12 | . 14 14 11 11 11 Protection 5 | . . . 8 11 11 Energy Gun 9 | . 24 22 . . . Ballistic Cannon 15 | . 3 5 21 22 22 Peak Build Rating 21 | 7 9 8 17 21 21 Average Rating 12 | 5 7 8 14 17 21 On Entrance 10 | . 7 8 8 16 21 Naked Turns . | . . . . . . Heaviest Build 66 | 14 52 52 65 66 66 Greatest Support 68 | 40 40 40 60 68 68 Greatest Overweight (x) 1 | . 1 1 1 1 . Average Overweight (x) . | . . 1 . . . Largest Inventory Capacity 20 | 8 20 20 20 20 20 Average Capacity 18 | 6 17 20 20 20 20 Most Carried 20 | 7 19 18 20 20 20 Average Carried 17 | 4 13 18 19 20 20 Final Capacity 20 | 8 20 20 20 20 20 Final Carried 20 | 7 18 18 20 20 20 Class Distribution -------------------- 100% | Mutant Dominant Class ---------------- Mutant | -10/Materials Mutant | -10/Mines Mutant | -9/Materials Mutant | -9/Mines Mutant | -9/Exiles Resources | -11 -10 -10 -9 -9 -9 ----------- Run | Yrd Mat Min Mat Min Exi Matter Collected 1534 | 270 321 76 644 223 . Remotely . | . . . . . . Salvage Created 1600 | 97 426 11 810 256 . Parts 101 | 9 27 7 48 10 . Haulers Intercepted 3 | . 1 . 2 . . Recyclers Shooed 4 | . 1 . 1 2 . Parts Field Recycled . | . . . . . . Retrieved Matter . | . . . . . . Parts Self-Destructed . | . . . . . . Prevented . | . . . . . . Kills | -11 -10 -10 -9 -9 -9 ------- Run | Yrd Mat Min Mat Min Exi Combat Hostiles Destroyed 39 | . 9 3 22 5 . Guns 4 | . 4 . . . . Cannons 23 | . 2 . 16 5 . AOE 12 | . 3 3 6 . . Classes Destroyed 9 | 2 6 . 1 . . Worker 2 | . 1 . 1 . . Tunneler 3 | 2 . . 1 . . Hauler 3 | . 1 . 2 . . Recycler 5 | 1 . . 2 2 . Operator 1 | . 1 . . . . Watcher 4 | . 3 . 1 . . Swarmer 14 | . 3 3 8 . . Grunt 18 | . 6 . 7 5 . Sentry 7 | . . . 7 . . Best Kill Streak 4 | 3 3 3 4 2 . Combat Bots Only 4 | . 3 3 4 2 . Max Kills in Single Turn 3 | 1 3 2 3 1 . Gunslinging . | . . . . . . Exploded 3 | . 3 2 3 . . Melee . | . . . . . . Uniques/NPCs Destroyed . | . . . . . . Combat | -11 -10 -10 -9 -9 -9 -------- Run | Yrd Mat Min Mat Min Exi Hostile Shots Fired 125 | . 23 4 87 11 . Missed 35 | . 7 . 26 2 . Hits 90 | . 16 4 61 9 . Projectile 90 | . 16 4 61 9 . Critical Strikes 2 | . . . 1 1 . Damage Taken 1174 | . 213 75 767 119 . Core 152 | . 34 7 94 17 . Absorbed by Shields . | . . . . . . Core Remaining (%) 91 | 100 . 83 . . . Volleys Fired 134 | 7 48 2 62 15 . Largest 2 | 2 2 1 2 2 . Hottest 90 | 90 90 30 60 70 . Shots Fired 260 | 14 96 2 118 30 . Gun 102 | 14 88 . . . . Cannon 150 | . 8 . 112 30 . Launcher 8 | . . 2 6 . . Special . | . . . . . . Kinetic 150 | . 8 . 112 30 . Thermal 102 | 14 88 . . . . Explosive 8 | . . 2 6 . . Electromagnetic . | . . . . . . Robot Hit Streak 13 | 6 13 . 12 3 . Robot Miss Streak 4 | 1 3 . 4 2 . Penetration Max . | . . . . . . Secondary Targets . | . . . . . . Shots Hit Robots 154 | 8 56 . 72 18 . Core Hits 80 | 4 26 3 39 8 . Critical Kills . | . . . . . . Critical Parts Destroyed . | . . . . . . Critical Strikes 10 | . 2 . 7 1 . Burn 1 | . 1 . . . . Blast 9 | . 1 . 7 1 . Melee Attacks 2 | . . . 2 . . Impact 2 | . . . 2 . . Slashing . | . . . . . . Piercing . | . . . . . . Sneak Attacks . | . . . . . . Combat Hostiles . | . . . . . . Follow-up Attacks . | . . . . . . Damage Inflicted 3230 | 92 880 129 1746 383 . Guns 702 | 92 610 . . . . Cannons 1757 | . 119 . 1258 380 . Explosions 759 | . 151 129 479 . . Melee . | . . . . . . Ramming 12 | . . . 9 3 . Kinetic 1757 | . 119 . 1258 380 . Thermal 702 | 92 610 . . . . Explosive 608 | . . 129 479 . . Electromagnetic 151 | . 151 . . . . Impact . | . . . . . . Slashing . | . . . . . . Piercing . | . . . . . . Highest Corruption . | . . . . . . Average Corruption . | . . . . . . Corruption Purged . | . . . . . . Corruption Blocked . | . . . . . . Overload Shots . | . . . . . . Overflow Damage 2 | . 2 . . . . Projectiles . | . . . . . . Explosions 2 | . 2 . . . . Melee . | . . . . . . Knockbacks 12 | . 3 . 6 3 . Impact . | . . . . . . Kinetic 10 | . 2 . 5 3 . Secondary 2 | . 1 . 1 . . Self-Inflicted Damage 67 | . 27 21 19 . . Shots 3 | . 1 1 1 . . Rammed 4 | . . . 3 1 . Targets Rammed 4 | . . . 3 1 . Kicked . | . . . . . . Crushed . | . . . . . . Highest Temperature 240 | 60 240 . 81 90 . Average Temperature 43 | 24 68 . 22 27 . Received Heat Transfer 366 | . 69 . 210 87 . Effects 1 | . 1 . . . . Interference 1 | . 1 . . . . Siege Activations . | . . . . . . Martial Activations . | . . . . . . Shielding Activations . | . . . . . . Robots Disrupted . | . . . . . . Combat Hostiles . | . . . . . . Robots Corrupted . | . . . . . . Combat Hostiles . | . . . . . . Parts Fried . | . . . . . . Impact Corruptions . | . . . . . . Robots Melted . | . . . . . . Combat Hostiles . | . . . . . . Parts Melted 2 | . 2 . . . . Heat Transferred 1910 | 236 1674 . . . . Parts Sabotaged . | . . . . . . Parts Stolen . | . . . . . . Parts Stripped . | . . . . . . Power Chain Reactions . | . . . . . . Alert | -11 -10 -10 -9 -9 -9 ------- Run | Yrd Mat Min Mat Min Exi Maximum Alert Level 1 | . . . 1 . . Low Security (%) 98 | 100 100 100 96 100 . Level 1 1 | . . . 3 . . Level 2 . | . . . . . . Level 3 . | . . . . . . Level 4 . | . . . . . . Level 5 . | . . . . . . High Security . | . . . . . . Max Security . | . . . . . . Peak Influence 373 | 10 101 88 373 144 . Initial 144 | . . . 22 144 . Average 44 | . 17 15 75 37 . Influence Increases 1310 | 15 293 88 769 145 . Destroy 0b10 Robot/C 780 | . 180 60 440 100 . Destroy 0b10 Robot/NC 90 | 15 30 . 35 10 . Destroy Leader 194 | . 38 10 126 20 . Successful Hack 26 | . 14 . 12 . . Disable Machine 75 | . 30 . 45 . . Destroy Structure 70 | . 1 18 51 . . Lose Combat Pursuer 75 | . . . 60 15 . Influence Decreases 1310 | 15 291 32 457 515 . Entered New Map 264 | . . 2 36 226 . Time Decay 1036 | 15 291 30 421 279 . Lost Part 10 | . . . . 10 . Squads Dispatched 5 | . 1 . 3 1 . Investigation 2 | . . . 1 1 . Extermination . | . . . . . . Reinforcement 3 | . 1 . 2 . . Assault . | . . . . . . Garrison . | . . . . . . Intercept . | . . . . . . Searches Triggered . | . . . . . . Construction Impeded . | . . . . . . Haulers Reinforced . | . . . . . . Active Scanning Responses . | . . . . . . Cargo Convoy Interrupts . | . . . . . . Stealth | -11 -10 -10 -9 -9 -9 --------- Run | Yrd Mat Min Mat Min Exi Distress Signals 2 | . . . 1 1 . Communications Jammed . | . . . . . . Distress Signals . | . . . . . . Times Spotted 57 | . 16 2 32 7 . Peak Tracking Total 6 | . 3 2 6 3 . Tactical Retreats 3 | . . . 2 1 . Traps | -11 -10 -10 -9 -9 -9 ------- Run | Yrd Mat Min Mat Min Exi Traps Triggered 3 | . 1 1 1 . . Indirectly . | . . . . . . Trap Hack Attempts . | . . . . . . Triggered . | . . . . . . Disarmed . | . . . . . . Reprogrammed . | . . . . . . Reused . | . . . . . . Traps Extracted . | . . . . . . Installed . | . . . . . . Triggered . | . . . . . . Machines | -11 -10 -10 -9 -9 -9 ---------- Run | Yrd Mat Min Mat Min Exi Machines Disabled 5 | . 2 . 3 . . Max in Single Turn 2 | . 2 . 1 . . Machines Repaired . | . . . . . . Machines Dismantled . | . . . . . . Machines Sabotaged . | . . . . . . Overloaded Fab Kills . | . . . . . . Hacking | -11 -10 -10 -9 -9 -9 --------- Run | Yrd Mat Min Mat Min Exi Machines Accessed 16 | . 8 1 5 1 1 Terminals 13 | . 8 . 5 . . Fabricators . | . . . . . . Repair Stations . | . . . . . . Recycling Units . | . . . . . . Scanalyzers . | . . . . . . Garrison Access . | . . . . . . Total Hacks 36 | . 20 1 13 1 1 Successful 13 | . 7 1 3 1 1 Failed 22 | . 12 . 10 . . Catastrophic 1 | . 1 . . . . Database Lockouts 1 | . 1 . . . . Manual 11 | . 6 . 5 . . Terminals 33 | . 20 . 13 . . Fabricators . | . . . . . . Repair Stations . | . . . . . . Recycling Units . | . . . . . . Scanalyzers . | . . . . . . Garrison Access . | . . . . . . Terminal Hacks 11 | . 6 1 2 1 1 Record 1 | . . . . . 1 Robot Analysis 1 | . 1 . . . . Prototype ID Bank 4 | . 4 . . . . Open Door 2 | . . 1 . 1 . Branch Access Points 1 | . . . 1 . . Hauler Manifests 2 | . 1 . 1 . . Fabricator Hacks . | . . . . . . Repair Station Hacks . | . . . . . . Recycling Unit Hacks . | . . . . . . Scanalyzer . | . . . . . . Garrison Access Hacks . | . . . . . . Unauthorized Hacks 2 | . 1 . 1 . . Terminals 2 | . 1 . 1 . . Botnet 2 | . 1 . 1 . . Fabricators . | . . . . . . Repair Stations . | . . . . . . Recycling Units . | . . . . . . Scanalyzers . | . . . . . . Garrison Access . | . . . . . . Data Cores Recovered . | . . . . . . Used . | . . . . . . Hacking Detections 10 | . 5 . 5 . . Full Trace Events 1 | . . . 1 . . Feedback Events . | . . . . . . Feedback Blocked . | . . . . . . Robot Schematics Acquired . | . . . . . . Robots Built . | . . . . . . Authchips . | . . . . . . Time . | . . . . . . Total Robot Build Rating . | . . . . . . Part Schematics Acquired . | . . . . . . Parts Built . | . . . . . . Authchips . | . . . . . . Time . | . . . . . . Total Part Build Rating . | . . . . . . Parts Repaired . | . . . . . . Time . | . . . . . . Parts Recycled . | . . . . . . Recycled Matter . | . . . . . . Retrieved Matter . | . . . . . . Retrieved Components . | . . . . . . Parts Scanalyzed . | . . . . . . Part Schematics Acquired . | . . . . . . Parts Damaged . | . . . . . . Bothacking | -11 -10 -10 -9 -9 -9 ------------ Run | Yrd Mat Min Mat Min Exi Used RIF Installer . | . . . . . . Robots Hacked . | . . . . . . Non-combat . | . . . . . . Combat . | . . . . . . Robot Hacks Applied . | . . . . . . Relay Couplers Released . | . . . . . . Fabnet Peak Effective % . | . . . . . . Robots Rewired . | . . . . . . Allies Hacked . | . . . . . . Hacks Repelled . | . . . . . . Allies | -11 -10 -10 -9 -9 -9 -------- Run | Yrd Mat Min Mat Min Exi Total Allies . | . . . . . . Largest Group . | . . . . . . Highest-Rated Group . | . . . . . . Highest-Rated Ally . | . . . . . . Total Orders . | . . . . . . Ally Attacks . | . . . . . . Total Damage . | . . . . . . Kills . | . . . . . . Allies Corrupted . | . . . . . . Allies Melted . | . . . . . . Intel | -11 -10 -10 -9 -9 -9 ------- Run | Yrd Mat Min Mat Min Exi Active Infowar (turns) 4503 | 47 1557 331 1996 572 . Seismic 4503 | 47 1557 331 1996 572 . Robot Analysis Total 1 | . 1 . . . . Derelict Logs Recovered 2 | . . 1 . 1 . Drone Launches . | . . . . . . Drone Recoveries . | . . . . . . Exploration | -11 -10 -10 -9 -9 -9 ------------- Run | Yrd Mat Min Mat Min Exi Turns Passed 5063 | 134 1557 331 1996 886 159 Spaces Moved 2031 | 63 647 135 690 397 99 Core 4 | 4 . . . . . Treads 2027 | 59 647 135 690 397 99 Legs . | . . . . . . Wheels . | . . . . . . Hover . | . . . . . . Flight . | . . . . . . Fastest Speed 50 | 50 160 240 160 160 160 Average Speed 211 | 153 208 240 223 206 160 Slowest Speed 240 | 160 240 240 240 240 160 Overloaded Moves . | . . . . . . Propulsion Burnouts . | . . . . . . Robots Hopped . | . . . . . . Potential Cave-ins . | . . . . . . Cave-ins Triggered . | . . . . . . Exploration Rate (%) 51 | 4 93 46 64 68 36 Regions Visited 5 Branch Regions 3 Pre-discovered Areas 2 | . . 1 . 1 . Known Exits Taken 1 | . . . 1 . . Unknown Exits Taken 4 | 1 1 1 . 1 . Scrap Searched 2 | . . 1 . 1 . Spaces Dug 41 | . . 18 23 . . Terrain Destroyed 83 | . . 18 65 . . Melee 1 | . . . 1 . . Projectile . | . . . . . . AOE 82 | . . 18 64 . . Terrain Rammed . | . . . . . . Walls Destroyed . | . . . . . . Machines Disabled . | . . . . . . Actions | -11 -10 -10 -9 -9 -9 --------- Run | Yrd Mat Min Mat Min Exi Total 2539 | 83 761 139 1024 433 99 Wait 276 | . 46 . 216 14 . Move 2026 | 62 646 134 689 396 99 Hop . | . . . . . . Pick Up 35 | 7 12 . 15 1 . Fast Attach 8 | 7 . . 1 . . Attach 1 | . . . 1 . . Detach . | . . . . . . Swap 26 | . 6 3 15 2 . Drop 26 | . 3 . 20 3 . Fire 134 | 7 48 2 62 15 . Melee 2 | . . . 2 . . Ram . | . . . . . . Kick . | . . . . . . Crush 4 | . . . 3 1 . Escape Stasis . | . . . . . . Rewire 1 | . . . . 1 . Trap . | . . . . . . Miscellaneous . | . . . . . . Route ------- -11/Scrapyard -10/Materials (discovered 5 exits: *Mat x3 / *Min x2) -10/Mines (discovered 2 exits: *Mat / [*Sub]) -9/Materials (discovered 3 exits: [*Mat] / *Min / *Sto) -9/Mines (discovered 3 exits: [*Mat x2] / *Exi) -9/Exiles History --------- Turn | Location | Event 11 | -11/Scrapyard | Discovered new exit (range 15) 135 | -11/Scrapyard | Entered Materials 321 | -10/Materials | Discovered new exit (range 6) 324 | -10/Materials | Build established: Mutant 376 | -10/Materials | Discovered new exit (range 12) 575 | -10/Materials | Central database locked down 615 | -10/Materials | Discovered new exit (range 5) 737 | -10/Materials | Discovered new exit (range 11) 960 | -10/Materials | Discovered new exit (range 16) 1692 | -10/Materials | Entered Mines 1705 | -10/Mines | Met a Derelict who couldn't figure out how to use a Trap Extractor 1767 | -10/Mines | Learned location of Zion (-6) 1829 | -10/Mines | Discovered new exit (range 4) 1947 | -10/Mines | Discovered new exit (range 11) 2023 | -10/Mines | Entered Materials 2023 | -9/Materials | Evolved 2 slots: Propulsion x1, Utility x1 2408 | -9/Materials | Discovered new exit (range 13) 3425 | -9/Materials | Identified exit to Mines 3425 | -9/Materials | Identified exit to Storage 3581 | -9/Materials | Discovered new exit (range 8) 4019 | -9/Materials | Entered Mines 4312 | -9/Mines | Discovered new exit (range 12) 4545 | -9/Mines | Discovered new exit (range 15) 4582 | -9/Mines | Met a Derelict shopkeep closing up shop 4802 | -9/Mines | Deemed a non-threat by the Exiles lab entrance 4804 | -9/Mines | Discovered new exit (range 5) 4905 | -9/Mines | Entered Exiles 4905 | -9/Exiles | Found Exiles lab abandoned 5064 | -9/Exiles | Self-destructed Last Messages --------------- World map confirmed: -6/Zion. 04739_ G-34 Mercenary Aluminum Leg blasted off. 04739_ G-34 Mercenary destroyed. 04742_ G-47 Trooper destroyed. 04758_ Dropped Lgt. Ion Engine. 04758_ Acquired Lgt. Nuclear Core. 04759_ Acquired 20 matter. 04794_ Searching scrap... 04794_ Found Shotgun. 04794_ Found Lrg. Battery. 04794_ Found 38 Matter. 04794_ Found 48 Matter. 04802_ "No threat detected, you may enter." 04804_ EXIT=FOUND LOCATION=UNKNOWN GOAL=ESCAPE 05061_ Connecting with BIN's Terminal... 05061_ Current location identified: Exiles >>Record "BIN-BYE" To the spacelab! Map ----- +----------------------------------------------------+ | ?????????????????????????????????????????????????? | | ?????????????????????????????????????????????????? | | ?????????????????????????????????????????????????? | | ?????????????????????????????????????????????????? | | ?????????????????????????????????????????????????? | | ?????????????????????????????????????????????????? | | ?????????????????????????????????????????????????? | | ???????????????????? ???????????????????????????? | | ????????????????## ??????????????????????????? | | ???????????????? ??????????????????????????? | | ????????????????? ??????????????????????????? | | ?????????????????# ??????????????????????????? | | ?????????????????# ??#########???????????????? | | ?????????????????# ??#"""""""#???????????????? | | ?????????????????# ??#"""""""#???????????????? | | ?????????????????# #?#"""""""#???????????????? | | ????????????????## ###"" """"#???????????????? | | ????????????????#" """"#???????????????? | | ????????????????#" """#???????????????? | | ????????????????#" """#???????????????? | | ????????????????#" """#???????????????? | | ????????????????#" """#???????????????? | | ????????????????#" """##??????????????? | | ????????????????## """""??????????????? | | ?????????????????# """##??????????????? | | ?????????????????#" @"X" """""??????????????? | | ?????????????????#" """ # ??????????????? | | ?????????????????#" """""""""#???????????????? | | ????????????????##" ###########???????????????? | | ???????????????##"" #?????????????????????????? | | ???????????#####"" #?????????????????????????? | | ???????????""""""" ##????????????????????????? | | ??????????""" " "" ##???###########?????????? | | ????????" """ " #####"""""""""##????????? | | ?????? " " " """ """"##???????? | | ????? "" " #???????? | | ????? " """#???????? | | ????? " "#???????? | | ????? " "##??????? | | ????? ""###????? | | ?????? """""" """#????? | | ?????? ######""" "#????# | | ??????? ""#?????#####""" ##???# | | ??????? ""????????????##""" ##?## | | ????????????????????????#"""" ### | | ????????????????????????#"" | | ?????????????????????????""" | | ????????????????????????? | | ???????????????????????? #" | | ???????????????????????? ### | +----------------------------------------------------+ Best States ------------- Heat Dissipation 28 Energy Generation 14 Energy Capacity 275 Matter Stores 300 Matter Capacity 300 Sight Range 16 Terrain Scan Density 10 Armor Coverage 225 Evasion (%) 40 Targeting Accuracy 6 Recoil Reduction 3 Item Schematics ----------------- None Robot Schematics ------------------ None Fabricated ------------ Nothing Repaired ---------- Nothing Alien Tech Used ----------------- None Achievements -------------- None Challenges ------------ None Game ------ Seed BehemothRapidBlade Manual? 0 Play Time 00:38:44 Cumulative 19.2 hours Start 2025.08.06 @ 19:22:38 End 2025.08.06 @ 20:03:40 Sessions 2 Manual Loads 0 Difficulty Rogue Special Mode None Game No. 20 Rogue 20 Adventurer 0 Explorer 0 Win Type - Total 0 Types 0/0/0/0/0/0/0/0/0/0 Lore% 19 Gallery% 15 Achievement% 21 Wizard Run 0 Options --------- Layout 1 ASCII 0 Keyboard 1 Movement Numpad Keybinds 0 Fullscreen 2 Font 24/Smallcaps Map View 50x35 Zoom Use 0% Tactical HUD 1 Map Filters NONE Filters NONE Steam 1 RUN: 13a07ff3-25fb-481e-ba1c-919468b8e0e3